bitfinex/quotes_BTCUSD_20250618
["timestamp","ask_amount","ask_price","bid_price","bid_amount"]
[1750287110912,0.4445436,105060.0,105050.0,0.0498]
[1750287111122,0.42678669,105060.0,105050.0,0.0498]
[1750287111335,0.44454988,105060.0,105050.0,0.0498]
[1750287111991,0.44454988,105060.0,105050.0,0.001]
[1750287114051,0.44455097,105060.0,105050.0,0.001]
[1750287116860,0.43566771,105060.0,105050.0,0.001]
[1750287117082,0.44455151,105060.0,105050.0,0.001]
[1750287117294,0.44455697,105060.0,105050.0,0.001]
[1750287119250,0.46905697,105060.0,105050.0,0.001]
[1750287119509,5.50609697,105060.0,105050.0,0.001]
[1750287119777,5.53130326,105060.0,105050.0,0.001]
[1750287121568,5.81171619,105060.0,105050.0,0.001]
[1750287121793,5.76809575,105060.0,105050.0,0.001]
[1750287122017,5.79671375,105060.0,105050.0,0.001]
[1750287122244,5.79671048,105060.0,105050.0,0.001]
[1750287122456,0.21898394,105030.0,105020.0,0.4049794]
[1750287122879,0.41898394,105030.0,105020.0,0.4049794]
[1750287123746,0.41898394,105030.0,105020.0,0.39545759]
[1750287123958,0.41898394,105030.0,105020.0,0.41750148]
[1750287124389,0.41898394,105030.0,105020.0,0.26278148]
[1750287124600,0.39994277,105030.0,105020.0,0.25325958]
[1750287124812,0.39994277,105030.0,105020.0,0.25425958]
[1750287126080,0.39994277,105030.0,105020.0,0.06382199]
[1750287126314,0.39994277,105030.0,105020.0,0.2542619]
[1750287129279,0.39994277,105030.0,105020.0,0.0543]
[1750287130830,0.39994277,105030.0,105020.0,0.2542619]
[1750287131052,0.39994277,105030.0,105020.0,0.2637838]
[1750287131755,0.19994277,105030.0,105020.0,0.27330561]
[1750287132347,0.19994277,105030.0,105020.0,0.2637838]
[1750287133027,0.19994277,105030.0,105020.0,0.4089819]
[1750287135240,0.53994277,105030.0,105020.0,0.4089819]
[1750287135874,0.53994277,105030.0,105020.0,0.4185038]
[1750287136101,0.53994277,105030.0,105020.0,0.42802561]
[1750287137758,0.53994277,105030.0,105020.0,0.4185038]
[1750287139809,0.53994277,105030.0,105020.0,0.4089819]
[1750287140343,0.53994277,105030.0,105020.0,0.4185038]
[1750287142115,0.53994277,105030.0,105020.0,0.42802552]
[1750287143448,0.35904171,105030.0,105020.0,0.43754706]
[1750287143668,0.36856189,105030.0,105020.0,0.44706842]
[1750287144091,0.56850466,105030.0,105020.0,0.44706851]
[1750287144312,0.56850466,105030.0,105020.0,0.44706788]
[1750287145369,0.37808288,105030.0,105020.0,0.44706788]
[1750287146274,0.56850466,105030.0,105020.0,0.44706788]
[1750287146714,0.37808288,105030.0,105020.0,0.44706788]
[1750287147349,0.56850466,105030.0,105020.0,0.44706788]
[1750287147558,0.57802574,105030.0,105020.0,0.44706788]
[1750287148564,0.58692889,105030.0,105020.0,0.44706788]
[1750287149085,0.37808288,105030.0,105020.0,0.44706788]
[1750287149583,0.56850466,105030.0,105020.0,0.44706788]
[1750287150554,0.58692893,105030.0,105020.0,0.44706788]
[1750287150754,0.57740859,105030.0,105020.0,0.43754652]
[1750287153054,0.56850538,105030.0,105020.0,0.43754652]
[1750287153818,0.57740868,105030.0,105020.0,0.43754652]
[1750287154229,0.56850538,105030.0,105020.0,0.43754652]
[1750287155092,0.57740853,105030.0,105020.0,0.43754652]
[1750287155522,0.57740838,105030.0,105020.0,0.43754652]
[1750287155933,0.56850538,105030.0,105020.0,0.43754652]
[1750287156772,0.56850538,105030.0,105020.0,0.44706788]
[1750287156773,0.36856252,105030.0,105020.0,0.44706788]
[1750287156989,0.56850538,105030.0,105020.0,0.44706788]
[1750287159439,0.34,105030.0,105020.0,0.54330964]
[1750287159661,0.74945595,105050.0,105040.0,0.0494]
[1750287159880,0.53041609,105040.0,105030.0,0.0494]
[1750287160090,0.53041609,105040.0,105030.0,0.39462178]
[1750287160091,0.55551772,105040.0,105030.0,0.39462178]
[1750287160302,0.57831025,105040.0,105030.0,0.40414277]
[1750287160513,0.54884014,105040.0,105030.0,0.40414277]
[1750287160722,0.53931996,105040.0,105030.0,0.39462178]
[1750287161140,0.53931996,105040.0,105030.0,0.40414277]
[1750287161561,0.53931996,105040.0,105030.0,0.41366367]
[1750287161767,0.53931996,105040.0,105030.0,0.42418448]
[1750287164241,0.53931996,105040.0,105030.0,0.4337052]
[1750287165262,0.53931996,105040.0,105030.0,0.42418448]
[1750287166347,0.53931996,105040.0,105030.0,0.4337052]
[1750287166967,0.53931996,105040.0,105030.0,0.42418448]
[1750287167275,0.54884014,105040.0,105030.0,0.42418448]
[1750287167493,0.55836005,105040.0,105030.0,0.4337052]
[1750287167721,0.55835485,105040.0,105030.0,0.4337052]
[1750287167933,0.55835485,105040.0,105030.0,0.44322583]
[1750287168355,0.37745821,105040.0,105030.0,0.44322529]
[1750287168565,0.56786186,105040.0,105030.0,0.44322529]
[1750287168775,0.57738195,105040.0,105030.0,0.44322529]
[1750287168978,0.3869783,105040.0,105030.0,0.44322529]
[1750287169402,0.36855954,105040.0,105030.0,0.44322529]
[1750287169587,0.37807963,105040.0,105030.0,0.44322529]
[1750287170500,0.3685589,105040.0,105030.0,0.44322529]
[1750287171804,0.3780789,105040.0,105030.0,0.44322529]
[1750287172618,0.3685589,105040.0,105030.0,0.44322529]
[1750287173745,0.36855881,105040.0,105030.0,0.44322529]
[1750287175231,0.38759872,105040.0,105030.0,0.44322529]
[1750287175723,0.57800237,105040.0,105030.0,0.44322529]
[1750287175927,0.57800319,105040.0,105030.0,0.44322529]
[1750287176128,0.37807936,105040.0,105030.0,0.44322529]
[1750287176735,0.36855936,105040.0,105030.0,0.44322529]
[1750287178637,0.37807936,105040.0,105030.0,0.44322529]
[1750287180059,0.03807936,105040.0,105030.0,0.44322529]
[1750287181969,0.01903945,105040.0,105030.0,0.44322529]
[1750287182177,0.02855945,105040.0,105030.0,0.44322529]
[1750287182383,0.01903945,105040.0,105030.0,0.44322529]
[1750287182779,0.02855936,105040.0,105030.0,0.44322529]
[1750287183920,0.01903945,105040.0,105030.0,0.44322529]
[1750287184132,0.01903899,105040.0,105030.0,0.44322529]
[1750287184364,0.02855881,105040.0,105030.0,0.28842529]
[1750287184584,0.02855881,105040.0,105030.0,0.44326529]
[1750287185179,0.03807881,105040.0,105030.0,0.44326529]
[1750287186045,0.03807872,105040.0,105030.0,0.44326529]
[1750287186265,0.04759872,105040.0,105030.0,0.44326529]
[1750287187818,0.05650566,105040.0,105030.0,0.44326529]
[1750287188028,0.04698584,105040.0,105030.0,0.44326529]
[1750287188511,0.05650584,105040.0,105030.0,0.44326529]
[1750287188930,0.05650584,105040.0,105030.0,0.28842529]
[1750287189130,0.39650584,105040.0,105030.0,0.44318529]
[1750287189915,0.39650657,105040.0,105030.0,0.44318529]
[1750287190318,0.58691022,105040.0,105030.0,0.44318529]
[1750287191990,0.39650657,105040.0,105030.0,0.44318529]
[1750287192917,0.39651096,105040.0,105030.0,0.44318529]
[1750287193333,0.58691461,105040.0,105030.0,0.44318529]
[1750287193818,0.39651096,105040.0,105030.0,0.44318529]
[1750287194026,0.35843087,105040.0,105030.0,0.44318529]
[1750287194239,0.38699004,105040.0,105030.0,0.44318529]
[1750287194444,0.39651013,105040.0,105030.0,0.44318529]
[1750287195275,0.38699004,105040.0,105030.0,0.44318529]
[1750287195928,0.38698939,105040.0,105030.0,0.44318529]
[1750287197573,0.36794967,105040.0,105030.0,0.44318529]
[1750287197782,0.3774693,105040.0,105030.0,0.44318529]
[1750287198195,0.0374693,105040.0,105030.0,0.44318529]
[1750287198640,0.02795092,105040.0,105030.0,0.44318529]
[1750287198849,0.03747055,105040.0,105030.0,0.44318529]
[1750287199665,0.04699027,105040.0,105030.0,0.44318529]
[1750287201017,0.05651009,105040.0,105030.0,0.44318529]
[1750287201433,0.0565094,105040.0,105030.0,0.44318529]
[1750287201733,0.04698958,105040.0,105030.0,0.44318529]
[1750287201961,0.00891142,105040.0,105030.0,0.53942705]
[1750287202173,0.04637894,105050.0,105040.0,0.2705631]
[1750287202387,0.26197358,105050.0,105040.0,0.2705631]
[1750287202816,0.06197358,105050.0,105040.0,0.2705631]
[1750287203233,0.26197358,105050.0,105040.0,0.2705631]
[1750287203438,0.26297358,105050.0,105040.0,0.2705631]
[1750287204126,0.05629016,105050.0,105040.0,0.2705631]
[1750287204335,0.06297233,105050.0,105040.0,0.2705631]
[1750287204746,0.26297233,105050.0,105040.0,0.2705631]
[1750287205379,0.06297233,105050.0,105040.0,0.2705631]
[1750287205594,0.04514985,105050.0,105040.0,0.2705631]
[1750287205807,0.24514985,105050.0,105040.0,0.2705631]
[1750287206031,0.58514985,105050.0,105040.0,0.2705631]
[1750287206236,0.58505456,105050.0,105040.0,0.2705631]
[1750287206953,0.5761421,105050.0,105040.0,0.2705631]
[1750287207152,0.59466448,105050.0,105040.0,0.2705631]
[1750287207806,0.2451453,105050.0,105040.0,0.2705631]
[1750287208221,0.23846437,105050.0,105040.0,0.2705631]
[1750287208742,0.23846428,105050.0,105040.0,0.2705631]
[1750287209218,0.22894528,105050.0,105040.0,0.2705631]
[1750287209424,0.02894528,105050.0,105040.0,0.2705631]
[1750287209629,0.03846392,105050.0,105040.0,0.2705631]
[1750287209881,0.01942637,105050.0,105040.0,0.2705631]
[1750287210059,0.00990791,105050.0,105040.0,0.36680486]
[1750287210274,0.00990747,105050.0,105040.0,0.36680486]
[1750287210683,0.001,105050.0,105040.0,0.36680486]
[1750287211562,0.01051846,105050.0,105040.0,0.36680486]
[1750287211972,0.001,105050.0,105040.0,0.36680486]
[1750287220833,0.0200371,105050.0,105040.0,0.36680486]
[1750287223160,0.02955583,105050.0,105040.0,0.36680486]
[1750287224283,0.02955583,105050.0,105040.0,0.36180486]
[1750287224485,0.22946099,105050.0,105040.0,0.4556455]
[1750287224969,0.21994235,105050.0,105040.0,0.4556455]
[1750287225158,0.21042362,105050.0,105040.0,0.4556455]
[1750287225577,0.21042362,105050.0,105040.0,0.46516532]
[1750287227414,0.21042362,105050.0,105040.0,0.47468504]
[1750287229602,0.21994289,105050.0,105040.0,0.47468504]
[1750287230397,0.02855736,105050.0,105040.0,0.47468504]
[1750287230648,0.01903809,105050.0,105040.0,0.53450458]
[1750287233886,0.01903755,105050.0,105040.0,0.53450458]
[1750287235417,0.03745179,105050.0,105040.0,0.53450458]
[1750287235604,0.0279327,105050.0,105040.0,0.53450458]
[1750287237354,0.0374517,105050.0,105040.0,0.53450458]
[1750287238682,0.01841379,105050.0,105040.0,0.53450458]
[1750287238858,0.02793261,105050.0,105040.0,0.53450458]
[1750287239098,0.03745161,105050.0,105040.0,0.53450458]
[1750287239304,0.02793261,105050.0,105040.0,0.53450458]
[1750287240918,0.01841379,105050.0,105040.0,0.53450458]
[1750287241125,0.00889515,105050.0,105040.0,0.53450458]
[1750287241436,0.00951855,105050.0,105040.0,0.53450458]
[1750287241569,0.60838347,105060.0,105050.0,0.21894253]
[1750287241803,0.62457587,105060.0,105050.0,0.24344253]
[1750287242030,0.62457613,105060.0,105050.0,0.24344253]
[1750287243678,0.06565582,105060.0,105050.0,0.28026117]
[1750287243894,0.26392672,105060.0,105050.0,0.28026117]
[1750287244101,0.29620964,105060.0,105050.0,0.28026117]
[1750287244519,0.30572782,105060.0,105050.0,0.28026117]
[1750287244723,0.49609649,105060.0,105050.0,0.28026117]
[1750287244933,0.4865778,105060.0,105050.0,0.2094238]
[1750287245142,0.26877786,105060.0,105050.0,0.3641438]
[1750287245342,0.28657239,105060.0,105050.0,0.3641438]
[1750287245554,0.28657239,105060.0,105050.0,0.37366262]
[1750287246158,0.28657239,105060.0,105050.0,0.3641438]
[1750287246367,0.26210367,105060.0,105050.0,0.37366262]
[1750287246584,0.2865707,105060.0,105050.0,0.37366262]
[1750287246939,0.28657066,105060.0,105050.0,0.37366262]
[1750287247145,0.28657066,105060.0,105050.0,0.38318135]
[1750287247518,0.27705257,105060.0,105050.0,0.3641438]
[1750287247727,0.24974022,105060.0,105050.0,0.35462471]
[1750287247951,0.44974022,105060.0,105050.0,0.3641438]
[1750287248759,0.44974022,105060.0,105050.0,0.37366271]
[1750287248979,0.44974022,105060.0,105050.0,0.38318153]
[1750287249250,0.44973986,105060.0,105050.0,0.38318153]
[1750287249564,0.44973986,105060.0,105050.0,0.37366271]
[1750287249772,0.4430674,105060.0,105050.0,0.37366271]
[1750287251088,0.44813076,105060.0,105050.0,0.19038553]
[1750287251295,0.44813076,105060.0,105050.0,0.34510553]
[1750287251522,0.47259425,105060.0,105050.0,0.15472]
[1750287251729,0.47259425,105060.0,105050.0,0.34510553]
[1750287251944,0.44849425,105060.0,105050.0,0.3546248]
[1750287252172,0.44849404,105060.0,105050.0,0.3546248]
[1750287253244,0.44849404,105060.0,105050.0,0.16423927]
[1750287253444,0.44849404,105060.0,105050.0,0.15472]
[1750287254911,0.43070256,105060.0,105050.0,0.34510553]
[1750287255126,0.44849938,105060.0,105050.0,0.34510553]
[1750287256583,0.44849915,105060.0,105050.0,0.34510553]
[1750287256831,0.448501,105060.0,105050.0,0.34510553]
[1750287257031,0.448501,105060.0,105050.0,0.3546248]
[1750287257771,0.44849965,105060.0,105050.0,0.36414398]
[1750287259857,0.19990453,105050.0,105040.0,0.33264541]
[1750287259995,0.2094238,105050.0,105040.0,0.41968337]
[1750287260191,0.02855718,105050.0,105040.0,0.42920291]
[1750287261187,0.02955718,105050.0,105040.0,0.42920291]
[1750287261571,0.03907582,105050.0,105040.0,0.42920291]
[1750287261796,0.22946135,105050.0,105040.0,0.42920291]
[1750287262124,0.22946135,105050.0,105040.0,0.25544374]
[1750287262326,0.22946135,105050.0,105040.0,0.41968356]
[1750287262656,0.22946135,105050.0,105040.0,0.42920319]
[1750287267276,0.03907564,105050.0,105040.0,0.43872273]
[1750287269473,0.02003755,105050.0,105040.0,0.43872273]
[1750287269872,0.2122542,105060.0,105050.0,0.1999048]
[1750287270072,0.24563047,105060.0,105050.0,0.1999048]
[1750287270270,0.44563047,105060.0,105050.0,0.1999048]
[1750287270778,0.44563047,105060.0,105050.0,0.23502398]
[1750287271214,0.45714884,105060.0,105050.0,0.23502398]
[1750287271341,0.45714884,105060.0,105050.0,0.27134307]
[1750287271543,0.4571479,105060.0,105050.0,0.27134307]
[1750287272232,0.44824834,105060.0,105050.0,0.27134307]
[1750287272440,0.46666669,105060.0,105050.0,0.28086207]
[1750287272643,0.26666669,105060.0,105050.0,0.28086207]
[1750287273274,0.26666855,105060.0,105050.0,0.28086207]
[1750287273699,0.26666855,105060.0,105050.0,0.26182398]
[1750287274451,0.05441249,105060.0,105050.0,0.26182398]
[1750287274688,0.2352618,105060.0,105050.0,0.26182398]
[1750287274916,0.4352618,105060.0,105050.0,0.26182398]
[1750287275148,0.4352618,105060.0,105050.0,0.2523048]
[1750287275372,0.42574343,105060.0,105050.0,0.1999048]
[1750287275873,0.009519,105050.0,105040.0,0.41928246]
[1750287277191,0.010519,105050.0,105040.0,0.41928246]
[1750287277597,0.02893912,105050.0,105040.0,0.41928246]
[1750287278094,0.02893948,105050.0,105040.0,0.41928246]
[1750287278531,0.03845839,105050.0,105040.0,0.41928246]
[1750287278948,0.23836274,105050.0,105040.0,0.41928328]
[1750287279157,0.24788201,105050.0,105040.0,0.42880291]
[1750287279400,0.24788201,105050.0,105040.0,0.43832245]
[1750287279602,0.00951882,105050.0,105040.0,0.43832245]
[1750287280238,0.019038,105050.0,105040.0,0.43832245]
[1750287281487,0.02855709,105050.0,105040.0,0.43832245]
[1750287282543,0.03807609,105050.0,105040.0,0.43832245]
[1750287283554,0.047595,105050.0,105040.0,0.43832245]
[1750287283761,0.047595,105050.0,105040.0,0.42880291]
[1750287284521,0.047595,105050.0,105040.0,0.41928328]
[1750287284730,0.22846171,105050.0,105040.0,0.41928328]
[1750287284928,0.2189428,105050.0,105040.0,0.40976374]
[1750287285125,0.2189428,105050.0,105040.0,0.41928356]
[1750287285708,0.2189428,105050.0,105040.0,0.40524374]
[1750287285918,0.19992374,105040.0,105030.0,0.26266367]
[1750287286153,0.21896383,105040.0,105030.0,0.5326266]
[1750287286317,0.21896383,105040.0,105030.0,0.54214705]
[1750287286318,0.03807899,105040.0,105030.0,0.54214705]
[1750287287172,0.0380789,105040.0,105030.0,0.54314705]
[1750287287417,0.0380789,105040.0,105030.0,0.54414705]
[1750287287950,0.0285589,105040.0,105030.0,0.54414705]
[1750287288378,0.01903899,105040.0,105030.0,0.54414705]
[1750287288586,0.02855881,105040.0,105030.0,0.54414705]
[1750287288987,0.02855871,105040.0,105030.0,0.54414705]
[1750287291715,0.02855871,105040.0,105030.0,0.38946705]
[1750287291930,0.02855871,105040.0,105030.0,0.54414705]
[1750287292655,0.03807862,105040.0,105030.0,0.54414705]
[1750287292855,0.02855871,105040.0,105030.0,0.54414705]
[1750287293754,0.01903899,105040.0,105030.0,0.54414705]
[1750287294588,0.02855881,105040.0,105030.0,0.54414705]
[1750287294993,0.02855881,105040.0,105030.0,0.38946705]
[1750287295200,0.02855881,105040.0,105030.0,0.54414705]
[1750287295606,0.02855881,105040.0,105030.0,0.38946705]
[1750287295806,0.02855881,105040.0,105030.0,0.54414705]
[1750287296662,0.01903899,105040.0,105030.0,0.54414705]
[1750287296874,0.40942411,105050.0,105040.0,0.2716631]
[1750287297060,0.43736728,105050.0,105040.0,0.2716631]
[1750287297744,0.43736728,105050.0,105040.0,0.4263431]
[1750287298152,0.43836728,105050.0,105040.0,0.4263431]
[1750287298659,0.23846217,105050.0,105040.0,0.4263431]
[1750287298970,0.23846145,105050.0,105040.0,0.4263431]
[1750287301078,0.42884698,105050.0,105040.0,0.4263431]
[1750287301297,0.43836616,105050.0,105040.0,0.41682356]
[1750287301498,0.43836616,105050.0,105040.0,0.43586273]
[1750287301697,0.24798063,105050.0,105040.0,0.43586273]
[1750287302221,0.43836616,105050.0,105040.0,0.43586273]
[1750287302439,0.44788543,105050.0,105040.0,0.43586273]
[1750287302643,0.43836688,105050.0,105040.0,0.41682356]
[1750287303054,0.43836688,105050.0,105040.0,0.37364328]
[1750287303266,0.43836688,105050.0,105040.0,0.38316291]
[1750287303678,0.43836688,105050.0,105040.0,0.39268245]
[1750287304346,0.23846208,105050.0,105040.0,0.41818245]
[1750287304572,0.23846208,105050.0,105040.0,0.44618245]
[1750287304981,0.42884761,105050.0,105040.0,0.44618245]
[1750287305501,0.42384761,105050.0,105040.0,0.44618245]
[1750287305913,0.43336688,105050.0,105040.0,0.44618245]
[1750287306745,0.43336853,105050.0,105040.0,0.44618245]
[1750287307182,0.43336853,105050.0,105040.0,0.43666291]
[1750287309524,0.4244618,105050.0,105040.0,0.43666291]
[1750287309728,0.43336919,105050.0,105040.0,0.43666291]
[1750287312689,0.42385037,105050.0,105040.0,0.41762356]
[1750287312944,0.42385037,105050.0,105040.0,0.42714319]
[1750287314100,0.22394512,105050.0,105040.0,0.43666273]
[1750287314321,0.23346421,105050.0,105040.0,0.43666273]
[1750287314800,0.43336901,105050.0,105040.0,0.42714319]
[1750287315005,0.24298348,105050.0,105040.0,0.43666273]
[1750287315461,0.43336901,105050.0,105040.0,0.43666273]
[1750287315697,0.45618725,105050.0,105040.0,0.43666273]
[1750287315923,0.26118725,105050.0,105040.0,0.43666273]
[1750287316894,0.23836901,105050.0,105040.0,0.43666273]
[1750287317123,0.43836901,105050.0,105040.0,0.43666273]
[1750287317628,0.26118677,105050.0,105040.0,0.43666273]
[1750287318305,0.26119261,105050.0,105040.0,0.43666273]
[1750287318514,0.43837485,105050.0,105040.0,0.43666273]
[1750287318726,0.26119341,105050.0,105040.0,0.43666273]
[1750287319171,0.03847005,105050.0,105040.0,0.43666273]
[1750287319385,0.23847005,105050.0,105040.0,0.43666273]
[1750287319603,0.2612885,105050.0,105040.0,0.43666273]
[1750287320681,0.23847005,105050.0,105040.0,0.43666273]
[1750287320921,0.27080842,105050.0,105040.0,0.43666273]
[1750287321159,0.25177015,105050.0,105040.0,0.43666273]
[1750287321399,0.23847005,105050.0,105040.0,0.43666273]
[1750287322232,0.26129626,105050.0,105040.0,0.43666273]
[1750287322545,0.46120097,105050.0,105040.0,0.43666273]
[1750287323388,0.47072024,105050.0,105040.0,0.43666273]
[1750287323593,0.46788924,105050.0,105040.0,0.42714319]
[1750287323877,0.46120151,105050.0,105040.0,0.42714319]
[1750287324092,0.46789297,105050.0,105040.0,0.42714319]
[1750287326970,0.45897671,105050.0,105040.0,0.42714319]
[1750287327225,0.46789462,105050.0,105040.0,0.42714319]
[1750287328031,0.45837562,105050.0,105040.0,0.41762356]
[1750287328944,0.44885653,105050.0,105040.0,0.41762356]
[1750287329179,0.44885653,105050.0,105040.0,0.40810374]
[1750287329386,0.43933735,105050.0,105040.0,0.41762374]
[1750287329804,0.42373101,105050.0,105040.0,0.41762374]
[1750287330019,0.43934498,105050.0,105040.0,0.41762374]
[1750287330337,0.43265327,105050.0,105040.0,0.41762374]
[1750287330635,0.43934496,105050.0,105040.0,0.41762374]
[1750287331090,0.19992383,105040.0,105030.0,0.0535]
[1750287331327,0.2189843,105030.0,105020.0,0.27260525]
[1750287331539,0.20946376,105030.0,105020.0,0.26308371]
[1750287331771,0.20946376,105030.0,105020.0,0.42724534]
[1750287331981,0.20946376,105030.0,105020.0,0.43676688]
[1750287332400,0.20946376,105030.0,105020.0,0.44628833]
[1750287332807,0.21898457,105030.0,105020.0,0.4492877]
[1750287333027,0.21898457,105030.0,105020.0,0.2966477]
[1750287333236,0.21898457,105030.0,105020.0,0.4512877]
[1750287333437,0.02856279,105030.0,105020.0,0.4512877]
[1750287334075,0.21898457,105030.0,105020.0,0.44176634]
[1750287334500,0.02856198,105030.0,105020.0,0.4417657]
[1750287334712,0.02856135,105030.0,105020.0,0.4417657]
[1750287335126,0.03808216,105030.0,105020.0,0.4417657]
[1750287335334,0.02856162,105030.0,105020.0,0.4417657]
[1750287337057,0.02856153,105030.0,105020.0,0.4417657]
[1750287337392,0.03808234,105030.0,105020.0,0.4417657]
[1750287338145,0.04760324,105030.0,105020.0,0.4417657]
[1750287338769,0.01904081,105030.0,105020.0,0.4417657]
[1750287339178,0.02856144,105030.0,105020.0,0.4417657]
[1750287339395,0.01904081,105030.0,105020.0,0.4417657]
[1750287339597,0.02856153,105030.0,105020.0,0.4417657]
[1750287339971,0.01904081,105030.0,105020.0,0.4417657]
[1750287340179,0.02856153,105030.0,105020.0,0.4417657]
[1750287340377,0.01904081,105030.0,105020.0,0.4417657]
[1750287341080,0.02856144,105030.0,105020.0,0.4417657]
[1750287344818,0.03808216,105030.0,105020.0,0.4417657]
[1750287345199,0.02856144,105030.0,105020.0,0.4417657]
[1750287346655,0.03808225,105030.0,105020.0,0.4417657]
[1750287346889,0.02856144,105030.0,105020.0,0.4417657]
[1750287347110,0.03808216,105030.0,105020.0,0.4417657]
[1750287348402,0.04760306,105030.0,105020.0,0.4417657]
[1750287348562,0.04760297,105030.0,105020.0,0.4417657]
[1750287348770,0.03808216,105030.0,105020.0,0.4417657]
[1750287352244,0.04760306,105030.0,105020.0,0.4417657]
[1750287352377,0.23802556,105030.0,105020.0,0.43224453]
[1750287352574,0.04760378,105030.0,105020.0,0.44176589]
[1750287353682,0.04760378,105030.0,105020.0,0.43224453]
[1750287354101,0.03808279,105030.0,105020.0,0.44176589]
[1750287354542,0.02856189,105030.0,105020.0,0.44176589]
[1750287354744,0.22850457,105030.0,105020.0,0.44176589]
[1750287354945,0.03808279,105030.0,105020.0,0.44176589]
[1750287356250,0.04760378,105030.0,105020.0,0.44176589]
[1750287356454,0.23802556,105030.0,105020.0,0.44176589]
[1750287357367,0.2380261,105030.0,105020.0,0.43224453]
[1750287357620,0.22850547,105030.0,105020.0,0.40367991]
[1750287357847,0.21898475,105030.0,105020.0,0.41320163]
[1750287358361,0.21898475,105030.0,105020.0,0.41320172]
[1750287358593,0.20946385,105030.0,105020.0,0.41320172]
[1750287359236,0.19994286,105030.0,105020.0,0.41320172]
[1750287359676,0.00774736,105030.0,105020.0,0.42272344]
[1750287359886,0.19816914,105030.0,105020.0,0.42272344]
[1750287360291,0.19816914,105030.0,105020.0,0.43224507]
[1750287360727,0.19816914,105030.0,105020.0,0.27760507]
[1750287360897,0.19816914,105030.0,105020.0,0.43224507]
[1750287361636,0.19816914,105030.0,105020.0,0.42272344]
[1750287361902,0.40709355,105030.0,105020.0,0.15974]
[1750287362137,0.77339355,105030.0,105020.0,0.0051]
[1750287362383,0.64668156,105030.0,105020.0,0.0051]
[1750287362630,5.70734356,105030.0,105020.0,0.0051]
[1750287362844,5.70734313,105030.0,105020.0,0.0051]
[1750287363697,5.70734313,105030.0,105020.0,0.0031]
[1750287363902,5.70734313,105030.0,105020.0,0.0041]
[1750287364123,5.70734313,105030.0,105020.0,0.0011]
[1750287364342,5.70734313,105030.0,105020.0,0.0021]
[1750287364534,5.70732472,105030.0,105020.0,0.0021]
[1750287365381,5.7073116,105030.0,105020.0,0.0021]
[1750287366025,5.70730193,105030.0,105020.0,0.0021]
[1750287367510,5.70730197,105030.0,105020.0,0.0021]
[1750287368790,5.70730011,105030.0,105020.0,0.0021]
[1750287369004,5.68140011,105030.0,105020.0,0.0021]
[1750287370301,5.65508813,105030.0,105020.0,0.0021]
[1750287370663,5.63726923,105030.0,105020.0,0.0021]
[1750287371274,5.60864723,105030.0,105020.0,0.0021]
[1750287373337,5.60864444,105030.0,105020.0,0.0021]
[1750287373971,5.60864444,105030.0,105020.0,0.19253991]
[1750287374179,0.56885708,105030.0,105020.0,0.24473991]
[1750287374377,0.56885708,105030.0,105020.0,0.0543]
[1750287376222,0.56885704,105030.0,105020.0,0.0543]
[1750287376446,0.56217617,105030.0,105020.0,0.24473991]
[1750287377020,0.53932961,105030.0,105020.0,0.24473991]
[1750287377223,0.56213581,105030.0,105020.0,0.24473991]
[1750287377425,0.56881704,105030.0,105020.0,0.24473991]
[1750287377609,0.56881704,105030.0,105020.0,0.0543]
[1750287378072,0.56213581,105030.0,105020.0,0.0543]
[1750287378307,0.56881712,105030.0,105020.0,0.0543]
[1750287378564,0.56881712,105030.0,105020.0,0.24473991]
[1750287378776,0.56213581,105030.0,105020.0,0.2542619]
[1750287379194,0.56881703,105030.0,105020.0,0.2542619]
[1750287379786,0.33337251,105030.0,105020.0,0.2542619]
[1750287380011,0.52379429,105030.0,105020.0,0.2542619]
[1750287380235,0.52379429,105030.0,105020.0,0.2637838]
[1750287381378,0.52379429,105030.0,105020.0,0.2542619]
[1750287382016,0.52379429,105030.0,105020.0,0.0543]
[1750287383158,0.52379429,105030.0,105020.0,0.2542619]
[1750287384536,0.52379727,105030.0,105020.0,0.2542619]
[1750287384764,0.51711605,105030.0,105020.0,0.2542619]
[1750287384981,0.52379915,105030.0,105020.0,0.2542619]
[1750287385628,0.54661846,105030.0,105020.0,0.2542619]
[1750287387860,0.54662342,105030.0,105020.0,0.2542619]
[1750287388063,0.54662715,105030.0,105020.0,0.2542619]
[1750287388392,0.54662715,105030.0,105020.0,0.0543]
[1750287389588,0.56447126,105030.0,105020.0,0.0543]
[1750287390512,0.56448205,105030.0,105020.0,0.0543]
[1750287390714,0.53994657,105030.0,105020.0,0.0543]
[1750287390913,0.56448212,105030.0,105020.0,0.0543]
[1750287393156,0.56448418,105030.0,105020.0,0.0543]
[1750287393776,0.56449586,105030.0,105020.0,0.0543]
[1750287395376,0.564498,105030.0,105020.0,0.0543]
[1750287396729,0.56450337,105030.0,105020.0,0.0543]
[1750287397147,0.54664699,105030.0,105020.0,0.0543]
[1750287397331,0.5645029,105030.0,105020.0,0.0543]
[1750287398049,0.56450462,105030.0,105020.0,0.0543]
[1750287399486,0.55557643,105030.0,105020.0,0.0543]
[1750287399699,0.56450846,105030.0,105020.0,0.0543]
[1750287400357,0.56450843,105030.0,105020.0,0.0543]
[1750287402467,0.54664979,105030.0,105020.0,0.0543]
[1750287402694,0.56451886,105030.0,105020.0,0.0543]
[1750287403133,0.56452189,105030.0,105020.0,0.0543]
[1750287405004,0.56452189,105030.0,105020.0,0.0021]
[1750287405438,0.55559391,105030.0,105020.0,0.0021]
[1750287405642,0.56452853,105030.0,105020.0,0.0021]
[1750287406618,0.56452811,105030.0,105020.0,0.0021]
[1750287407131,0.56452843,105030.0,105020.0,0.0021]
[1750287407481,5.62507944,105030.0,105020.0,0.0021]
[1750287407689,5.59656843,105030.0,105020.0,0.0021]
[1750287408300,5.5965661,105030.0,105020.0,0.0021]
[1750287408504,5.5965661,105030.0,105020.0,0.0568]
[1750287409262,5.59656567,105030.0,105020.0,0.0568]
[1750287410505,5.62507668,105030.0,105020.0,0.0568]
[1750287410745,5.59656567,105030.0,105020.0,0.0568]
[1750287411204,5.59655611,105030.0,105020.0,0.0568]
[1750287414051,5.56306455,105030.0,105020.0,0.0568]
[1750287414275,5.59654347,105030.0,105020.0,0.0568]
[1750287417002,5.77961299,105030.0,105020.0,0.0568]
[1750287417215,5.77961299,105030.0,105020.0,0.0021]
[1750287417947,5.87585475,105030.0,105020.0,0.0021]
[1750287418433,5.90447775,105030.0,105020.0,0.0021]
[1750287420018,5.90447711,105030.0,105020.0,0.0021]
[1750287420950,5.98712188,105030.0,105020.0,0.0021]
[1750287421707,5.98711697,105030.0,105020.0,0.0011]
[1750287421943,5.98711697,105030.0,105020.0,0.0001]
[1750287422161,5.98811697,105030.0,105020.0,0.0001]
[1750287422614,5.95866972,105030.0,105020.0,0.0001]
[1750287424061,5.93066972,105030.0,105020.0,0.0001]
[1750287424266,5.90546972,105030.0,105020.0,0.19053991]
[1750287424481,5.90546972,105030.0,105020.0,0.0001]
[1750287425000,5.90546972,105030.0,105020.0,0.19053991]